[Event "Titled Tuesday Blitz June 8 2021"]
[White "Martin Duque, Jesus"]
[Black "Ivanisevic, Ivan"]
[WhiteFideId "2208954"]
[BlackFideId "912417"]
[WhiteElo "2246"]
[BlackElo "2499"]
[Result "0-1"]
[Round "08"]
[TimeControl "180+1"]
[Date "2021.06.08"]
[WhiteClock "0:00:28"]
[BlackClock "0:00:26"]

1. Nf3 {[%clk 0:03:00]}  d5 {[%clk 0:02:59]} 2. b3 {[%clk 0:03:01]}  Bg4 {[%clk 0:02:57]} 3. e3 {[%clk 0:03:01]}  Nf6 {[%clk 0:02:56]} 4. Bb2 {[%clk 0:03:01]}  Nbd7 {[%clk 0:02:56]} 5. h3 {[%clk 0:03:01]}  Bxf3 {[%clk 0:02:55]} 6. Qxf3 {[%clk 0:03:02]}  e5 {[%clk 0:02:53]} 7. g4 {[%clk 0:03:02]}  c6 {[%clk 0:02:52]} 8. Nc3 {[%clk 0:02:53]}  Qa5 {[%clk 0:02:25]} 9. g5 {[%clk 0:02:50]}  Ng8 {[%clk 0:02:22]} 10. a3 {[%clk 0:02:39]}  Bd6 {[%clk 0:02:11]} 11. h4 {[%clk 0:02:37]}  Ne7 {[%clk 0:02:10]} 12. Bh3 {[%clk 0:02:36]}  Qc7 {[%clk 0:02:01]} 13. h5 {[%clk 0:02:30]}  Rf8 {[%clk 0:01:51]} 14. O-O-O {[%clk 0:02:09]}  O-O-O {[%clk 0:01:46]} 15. Kb1 {[%clk 0:02:07]}  Kb8 {[%clk 0:01:46]} 16. e4 {[%clk 0:01:57]}  d4 {[%clk 0:01:45]} 17. Ne2 {[%clk 0:01:57]}  f6 {[%clk 0:01:42]} 18. g6 {[%clk 0:01:50]}  hxg6 {[%clk 0:01:34]} 19. hxg6 {[%clk 0:01:51]}  c5 {[%clk 0:01:30]} 20. d3 {[%clk 0:01:44]}  b5 {[%clk 0:01:27]} 21. Be6 {[%clk 0:01:37]}  Nb6 {[%clk 0:01:23]} 22. Ng3 {[%clk 0:01:35]}  Nxg6 {[%clk 0:01:20]} 23. Qg4 {[%clk 0:01:24]}  Nf4 {[%clk 0:01:20]} 24. Bf5 {[%clk 0:01:23]}  g6 {[%clk 0:01:17]} 25. Bxg6 {[%clk 0:00:58]}  Rg8 {[%clk 0:01:16]} 26. Rh6 {[%clk 0:00:58]}  Qg7 {[%clk 0:01:03]} 27. Nf5 {[%clk 0:00:57]}  Qf8 {[%clk 0:00:54]} 28. Rg1 {[%clk 0:00:56]}  c4 {[%clk 0:00:54]} 29. Qf3 {[%clk 0:00:45]}  Bxa3 {[%clk 0:00:51]} 30. Ba1 {[%clk 0:00:39]}  cxb3 {[%clk 0:00:50]} 31. cxb3 {[%clk 0:00:39]}  Qb4 {[%clk 0:00:49]} 32. Qd1 {[%clk 0:00:39]}  Rc8 {[%clk 0:00:44]} 33. Bf7 {[%clk 0:00:30]}  Rxg1 {[%clk 0:00:43]} 34. Qxg1 {[%clk 0:00:31]}  Rc1+ {[%clk 0:00:36]} 35. Qxc1 {[%clk 0:00:30]}  Bxc1 {[%clk 0:00:36]} 36. Rh8+ {[%clk 0:00:28]}  Kb7 {[%clk 0:00:30]} 37. Kxc1 {[%clk 0:00:28]}  Qe1+ {[%clk 0:00:29]} 38. Kb2 {[%clk 0:00:28]}  Nxd3+ {[%clk 0:00:26]} 0-1


[Site "https://www.chess.com"]

[Event "Titled Tuesday Blitz June 8 2021"]
[White "Moroni, Luca Jr"]
[Black "Madaminov, Mukhiddin"]
[WhiteFideId "865834"]
[BlackFideId "14210703"]
[WhiteElo "2491"]
[BlackElo "1747"]
[Result "1-0"]
[Round "08"]
[TimeControl "180+1"]
[Date "2021.06.08"]
[WhiteClock "0:00:24"]
[BlackClock "0:00:21"]

1. d4 {[%clk 0:03:00]}  Nf6 {[%clk 0:02:59]} 2. c4 {[%clk 0:02:57]}  e6 {[%clk 0:02:59]} 3. Nc3 {[%clk 0:02:57]}  Bb4 {[%clk 0:02:59]} 4. Nf3 {[%clk 0:02:57]}  d5 {[%clk 0:03:00]} 5. cxd5 {[%clk 0:02:56]}  exd5 {[%clk 0:02:59]} 6. Bf4 {[%clk 0:02:57]}  O-O {[%clk 0:03:00]} 7. e3 {[%clk 0:02:56]}  c6 {[%clk 0:02:54]} 8. Bd3 {[%clk 0:02:54]}  Bg4 {[%clk 0:02:52]} 9. Qb3 {[%clk 0:02:54]}  Qb6 {[%clk 0:02:51]} 10. Ne5 {[%clk 0:02:50]}  Bh5 {[%clk 0:02:43]} 11. O-O {[%clk 0:02:48]}  Nbd7 {[%clk 0:02:40]} 12. Na4 {[%clk 0:02:26]}  Qa5 {[%clk 0:02:36]} 13. Nxd7 {[%clk 0:02:22]}  Nxd7 {[%clk 0:02:36]} 14. a3 {[%clk 0:02:22]}  Bd2 {[%clk 0:02:24]} 15. Qc2 {[%clk 0:02:07]}  b5 {[%clk 0:02:00]} 16. Nc5 {[%clk 0:02:03]}  Nxc5 {[%clk 0:01:52]} 17. dxc5 {[%clk 0:02:04]}  Bg6 {[%clk 0:01:27]} 18. Rfd1 {[%clk 0:01:38]}  Bb4 {[%clk 0:01:04]} 19. axb4 {[%clk 0:01:34]}  Qxb4 {[%clk 0:01:05]} 20. Bxg6 {[%clk 0:01:33]}  fxg6 {[%clk 0:01:06]} 21. Rd4 {[%clk 0:01:30]}  Qxd4 {[%clk 0:01:06]} 22. exd4 {[%clk 0:01:29]}  Rxf4 {[%clk 0:01:07]} 23. Qd2 {[%clk 0:01:11]}  Re4 {[%clk 0:01:06]} 24. Re1 {[%clk 0:01:08]}  Rae8 {[%clk 0:00:56]} 25. Rxe4 {[%clk 0:01:04]}  Rxe4 {[%clk 0:00:57]} 26. f3 {[%clk 0:01:02]}  Re6 {[%clk 0:00:54]} 27. Qa5 {[%clk 0:01:01]}  h6 {[%clk 0:00:50]} 28. Qxa7 {[%clk 0:00:56]}  g5 {[%clk 0:00:50]} 29. Qd7 {[%clk 0:00:55]}  Rf6 {[%clk 0:00:45]} 30. Kf2 {[%clk 0:00:55]}  Kh7 {[%clk 0:00:38]} 31. Ke3 {[%clk 0:00:54]}  Kg6 {[%clk 0:00:38]} 32. Kd3 {[%clk 0:00:53]}  h5 {[%clk 0:00:37]} 33. h3 {[%clk 0:00:50]}  g4 {[%clk 0:00:30]} 34. hxg4 {[%clk 0:00:48]}  h4 {[%clk 0:00:29]} 35. g5 {[%clk 0:00:40]}  Kxg5 {[%clk 0:00:26]} 36. Qg4+ {[%clk 0:00:34]}  Kh6 {[%clk 0:00:26]} 37. Qxh4+ {[%clk 0:00:35]}  Kg6 {[%clk 0:00:27]} 38. Qg4+ {[%clk 0:00:31]}  Kh6 {[%clk 0:00:25]} 39. Qd7 {[%clk 0:00:32]}  Rg6 {[%clk 0:00:24]} 40. g4 {[%clk 0:00:31]}  Rf6 {[%clk 0:00:24]} 41. g5+ {[%clk 0:00:25]}  Kxg5 {[%clk 0:00:23]} 42. Qxg7+ {[%clk 0:00:25]}  Kf5 {[%clk 0:00:21]} 43. Qg4# {[%clk 0:00:24]} 1-0


[Site "https://www.chess.com"]

[Event "Titled Tuesday Blitz June 8 2021"]
[White "Narayanan, Srinath"]
[Black "Concio, Michael Jr."]
[WhiteFideId "5018420"]
[BlackFideId "5217873"]
[WhiteElo "2472"]
[BlackElo "1896"]
[Result "1-0"]
[Round "08"]
[TimeControl "180+1"]
[Date "2021.06.08"]
[WhiteClock "0:00:32"]
[BlackClock "0:01:00"]

1. Nf3 {[%clk 0:03:00]}  Nf6 {[%clk 0:02:56]} 2. c4 {[%clk 0:03:00]}  e6 {[%clk 0:02:55]} 3. g3 {[%clk 0:02:58]}  b6 {[%clk 0:02:56]} 4. Bg2 {[%clk 0:02:58]}  Bb7 {[%clk 0:02:56]} 5. O-O {[%clk 0:02:59]}  Be7 {[%clk 0:02:56]} 6. d4 {[%clk 0:02:59]}  O-O {[%clk 0:02:55]} 7. a3 {[%clk 0:02:59]}  d5 {[%clk 0:02:52]} 8. cxd5 {[%clk 0:02:58]}  exd5 {[%clk 0:02:51]} 9. b4 {[%clk 0:02:59]}  Nbd7 {[%clk 0:02:49]} 10. Nc3 {[%clk 0:02:55]}  c6 {[%clk 0:02:44]} 11. Bf4 {[%clk 0:02:53]}  Re8 {[%clk 0:02:42]} 12. Ne5 {[%clk 0:02:52]}  Nf8 {[%clk 0:02:40]} 13. Rc1 {[%clk 0:02:51]}  Ne6 {[%clk 0:02:39]} 14. b5 {[%clk 0:02:38]}  Nxf4 {[%clk 0:02:28]} 15. bxc6 {[%clk 0:02:23]}  Nxe2+ {[%clk 0:02:22]} 16. Qxe2 {[%clk 0:02:15]}  Bc8 {[%clk 0:02:22]} 17. c7 {[%clk 0:02:03]}  Qd6 {[%clk 0:02:22]} 18. Nb5 {[%clk 0:02:03]}  Qe6 {[%clk 0:02:22]} 19. Rc6 {[%clk 0:01:09]}  Qf5 {[%clk 0:02:19]} 20. Nd6 {[%clk 0:01:06]}  Bxd6 {[%clk 0:02:17]} 21. Rxd6 {[%clk 0:01:06]}  Bb7 {[%clk 0:02:00]} 22. Rc1 {[%clk 0:00:56]}  Rac8 {[%clk 0:02:00]} 23. Qf3 {[%clk 0:00:42]}  Qg5 {[%clk 0:01:13]} 24. Qf4 {[%clk 0:00:42]}  Qh5 {[%clk 0:01:07]} 25. Bf3 {[%clk 0:00:35]}  Qh3 {[%clk 0:01:03]} 26. Rxf6 {[%clk 0:00:31]}  gxf6 {[%clk 0:01:03]} 27. Bg4 {[%clk 0:00:32]}  fxe5 {[%clk 0:01:00]} 28. Qg5+ {[%clk 0:00:32]} 1-0


[Site "https://www.chess.com"]

[Event "Titled Tuesday Blitz June 8 2021"]
[White "Nazaretyan, Tigran"]
[Black "Badelka, Olga"]
[WhiteFideId "24162345"]
[BlackFideId "13509926"]
[WhiteElo "2247"]
[BlackElo "2181"]
[Result "1/2-1/2"]
[Round "08"]
[TimeControl "180+1"]
[Date "2021.06.08"]
[WhiteClock "0:01:06"]
[BlackClock "0:00:21"]

1. d4 {[%clk 0:03:00]}  d5 {[%clk 0:02:59]} 2. c4 {[%clk 0:03:00]}  dxc4 {[%clk 0:03:00]} 3. e3 {[%clk 0:03:00]}  Nf6 {[%clk 0:03:01]} 4. Bxc4 {[%clk 0:02:59]}  e6 {[%clk 0:03:01]} 5. Nf3 {[%clk 0:02:58]}  c5 {[%clk 0:03:02]} 6. O-O {[%clk 0:02:58]}  a6 {[%clk 0:03:01]} 7. a4 {[%clk 0:02:58]}  Nc6 {[%clk 0:03:01]} 8. Qe2 {[%clk 0:02:57]}  cxd4 {[%clk 0:02:40]} 9. Rd1 {[%clk 0:02:56]}  d3 {[%clk 0:02:33]} 10. Rxd3 {[%clk 0:02:53]}  Qc7 {[%clk 0:02:33]} 11. Nc3 {[%clk 0:02:49]}  Bd6 {[%clk 0:02:27]} 12. e4 {[%clk 0:02:45]}  Ne5 {[%clk 0:02:25]} 13. Nxe5 {[%clk 0:02:42]}  Bxe5 {[%clk 0:02:25]} 14. g3 {[%clk 0:02:42]}  O-O {[%clk 0:02:20]} 15. Bb3 {[%clk 0:02:38]}  Bd7 {[%clk 0:02:12]} 16. Be3 {[%clk 0:02:33]}  Bc6 {[%clk 0:02:09]} 17. f3 {[%clk 0:02:29]}  Rad8 {[%clk 0:02:08]} 18. Rad1 {[%clk 0:02:28]}  Rxd3 {[%clk 0:01:58]} 19. Qxd3 {[%clk 0:02:27]}  Bxg3 {[%clk 0:01:56]} 20. hxg3 {[%clk 0:02:20]}  Qxg3+ {[%clk 0:01:56]} 21. Kf1 {[%clk 0:02:20]}  Qxf3+ {[%clk 0:01:48]} 22. Bf2 {[%clk 0:02:20]}  Qg4 {[%clk 0:01:27]} 23. Re1 {[%clk 0:02:11]}  h5 {[%clk 0:01:20]} 24. Bd1 {[%clk 0:02:10]}  Qg6 {[%clk 0:01:16]} 25. Qg3 {[%clk 0:02:07]}  Ng4 {[%clk 0:01:11]} 26. Bxg4 {[%clk 0:02:01]}  hxg4 {[%clk 0:01:11]} 27. Qd6 {[%clk 0:01:47]}  Qh5 {[%clk 0:01:03]} 28. Rd1 {[%clk 0:01:40]}  Qh1+ {[%clk 0:00:54]} 29. Ke2 {[%clk 0:01:39]}  Qf3+ {[%clk 0:00:53]} 30. Ke1 {[%clk 0:01:40]}  Qh1+ {[%clk 0:00:19]} 31. Kd2 {[%clk 0:01:38]}  Qf3 {[%clk 0:00:19]} 32. Bg3 {[%clk 0:01:31]}  e5 {[%clk 0:00:15]} 33. Bxe5 {[%clk 0:01:28]}  Bxe4 {[%clk 0:00:15]} 34. Nxe4 {[%clk 0:01:25]}  Qxe4 {[%clk 0:00:15]} 35. Qd4 {[%clk 0:01:25]}  Qg2+ {[%clk 0:00:11]} 36. Kc1 {[%clk 0:01:24]}  Rc8+ {[%clk 0:00:11]} 37. Kb1 {[%clk 0:01:24]}  Qc2+ {[%clk 0:00:11]} 38. Ka1 {[%clk 0:01:24]}  Qc4 {[%clk 0:00:04]} 39. Bxg7 {[%clk 0:01:20]}  b5 {[%clk 0:00:03]} 40. Bf6 {[%clk 0:01:11]}  Qxd4 {[%clk 0:00:02]} 41. Rxd4 {[%clk 0:01:10]}  Rc4 {[%clk 0:00:01]} 42. Rxc4 {[%clk 0:01:09]}  bxc4 {[%clk 0:00:02]} 43. Be5 {[%clk 0:01:09]}  f5 {[%clk 0:00:01]} 44. Kb1 {[%clk 0:01:09]}  Kf7 {[%clk 0:00:02]} 45. Kc2 {[%clk 0:01:10]}  Ke6 {[%clk 0:00:03]} 46. Bf4 {[%clk 0:01:10]}  Kd5 {[%clk 0:00:03]} 47. Kd2 {[%clk 0:01:07]}  Ke4 {[%clk 0:00:04]} 48. Bc7 {[%clk 0:01:06]}  f4 {[%clk 0:00:04]} 49. Ke2 {[%clk 0:01:05]}  g3 {[%clk 0:00:05]} 50. Bb8 {[%clk 0:01:05]}  f3+ {[%clk 0:00:05]} 51. Kf1 {[%clk 0:01:04]}  g2+ {[%clk 0:00:04]} 52. Kf2 {[%clk 0:01:04]}  Kd3 {[%clk 0:00:04]} 53. Be5 {[%clk 0:01:01]}  Kc2 {[%clk 0:00:03]} 54. Bd4 {[%clk 0:01:02]}  Kb3 {[%clk 0:00:03]} 55. Kxf3 {[%clk 0:01:02]}  Kxa4 {[%clk 0:00:04]} 56. Kxg2 {[%clk 0:01:02]}  Kb3 {[%clk 0:00:04]} 57. Kf3 {[%clk 0:00:59]}  a5 {[%clk 0:00:05]} 58. Ke2 {[%clk 0:00:56]}  a4 {[%clk 0:00:06]} 59. Kd2 {[%clk 0:00:55]}  a3 {[%clk 0:00:06]} 60. bxa3 {[%clk 0:00:53]}  Kxa3 {[%clk 0:00:06]} 61. Kc3 {[%clk 0:00:53]}  Ka4 {[%clk 0:00:06]} 62. Bc5 {[%clk 0:00:54]}  Ka5 {[%clk 0:00:06]} 63. Bb4+ {[%clk 0:00:54]}  Kb5 {[%clk 0:00:06]} 64. Ba3 {[%clk 0:00:55]}  Kc6 {[%clk 0:00:07]} 65. Bc1 {[%clk 0:00:55]}  Kd5 {[%clk 0:00:07]} 66. Be3 {[%clk 0:00:56]}  Ke4 {[%clk 0:00:08]} 67. Bd4 {[%clk 0:00:56]}  Kf3 {[%clk 0:00:08]} 68. Be5 {[%clk 0:00:57]}  Ke2 {[%clk 0:00:09]} 69. Bd4 {[%clk 0:00:57]}  Kf1 {[%clk 0:00:10]} 70. Bc5 {[%clk 0:00:58]}  Ke2 {[%clk 0:00:10]} 71. Bb4 {[%clk 0:00:59]}  Kf3 {[%clk 0:00:11]} 72. Ba3 {[%clk 0:00:59]}  Kf4 {[%clk 0:00:12]} 73. Bb4 {[%clk 0:01:00]}  Kf5 {[%clk 0:00:13]} 74. Bc5 {[%clk 0:01:01]}  Kf4 {[%clk 0:00:13]} 75. Kd4 {[%clk 0:01:02]}  Kf5 {[%clk 0:00:14]} 76. Kd5 {[%clk 0:01:02]}  Kf4 {[%clk 0:00:15]} 77. Bd4 {[%clk 0:01:03]}  Kf3 {[%clk 0:00:16]} 78. Bc3 {[%clk 0:01:03]}  Ke2 {[%clk 0:00:17]} 79. Kd4 {[%clk 0:01:03]}  Kd1 {[%clk 0:00:18]} 80. Bb4 {[%clk 0:01:04]}  Kc2 {[%clk 0:00:19]} 81. Bc5 {[%clk 0:01:05]}  Kb3 {[%clk 0:00:19]} 82. Bd6 {[%clk 0:01:04]}  c3 {[%clk 0:00:20]} 83. Bf4 {[%clk 0:01:05]}  c2 {[%clk 0:00:20]} 84. Kd3 {[%clk 0:01:06]}  Kb2 {[%clk 0:00:21]} 85. Bd2 {[%clk 0:01:06]}  c1=Q {[%clk 0:00:21]} 86. Bxc1+ {[%clk 0:01:06]} 1/2-1/2


[Site "https://www.chess.com"]

[Event "Titled Tuesday Blitz June 8 2021"]
[White "Nenezic, Marko"]
[Black "Khusnutdinov, Rustam"]
[WhiteFideId "912123"]
[BlackFideId "13701703"]
[WhiteElo "2438"]
[BlackElo "2571"]
[Result "0-1"]
[Round "08"]
[TimeControl "180+1"]
[Date "2021.06.08"]
[WhiteClock "0:00:06"]
[BlackClock "0:00:14"]

1. d4 {[%clk 0:03:00]}  Nf6 {[%clk 0:02:59]} 2. c4 {[%clk 0:03:01]}  c5 {[%clk 0:02:58]} 3. d5 {[%clk 0:03:01]}  g6 {[%clk 0:02:58]} 4. Nc3 {[%clk 0:03:01]}  Bg7 {[%clk 0:02:58]} 5. e4 {[%clk 0:03:01]}  d6 {[%clk 0:02:59]} 6. Nf3 {[%clk 0:02:58]}  O-O {[%clk 0:02:59]} 7. Be2 {[%clk 0:02:57]}  e6 {[%clk 0:02:59]} 8. O-O {[%clk 0:02:56]}  exd5 {[%clk 0:02:59]} 9. exd5 {[%clk 0:02:56]}  Bf5 {[%clk 0:02:54]} 10. Nh4 {[%clk 0:02:52]}  Bc8 {[%clk 0:02:49]} 11. Bd3 {[%clk 0:02:49]}  Bg4 {[%clk 0:02:46]} 12. f3 {[%clk 0:02:42]}  Bc8 {[%clk 0:02:43]} 13. g3 {[%clk 0:02:42]}  Nbd7 {[%clk 0:02:41]} 14. Bg5 {[%clk 0:02:39]}  h6 {[%clk 0:02:34]} 15. Bd2 {[%clk 0:02:38]}  Ne5 {[%clk 0:02:34]} 16. Be2 {[%clk 0:02:38]}  Bh3 {[%clk 0:02:33]} 17. Re1 {[%clk 0:02:36]}  Re8 {[%clk 0:02:33]} 18. Ng2 {[%clk 0:02:35]}  Bxg2 {[%clk 0:02:28]} 19. Kxg2 {[%clk 0:02:35]}  h5 {[%clk 0:02:24]} 20. Bg5 {[%clk 0:02:22]}  Qb6 {[%clk 0:02:14]} 21. Qb3 {[%clk 0:02:21]}  Qc7 {[%clk 0:02:03]} 22. h3 {[%clk 0:02:14]}  Qd7 {[%clk 0:02:01]} 23. Qc2 {[%clk 0:01:53]}  Nh7 {[%clk 0:02:00]} 24. Bd2 {[%clk 0:01:51]}  f5 {[%clk 0:01:56]} 25. f4 {[%clk 0:01:52]}  Nf7 {[%clk 0:01:55]} 26. Bf3 {[%clk 0:01:52]}  a6 {[%clk 0:01:49]} 27. a4 {[%clk 0:01:50]}  Nf6 {[%clk 0:01:40]} 28. Qd3 {[%clk 0:01:32]}  Qc7 {[%clk 0:01:37]} 29. Re6 {[%clk 0:01:30]}  Nd8 {[%clk 0:01:30]} 30. Rxe8+ {[%clk 0:01:27]}  Nxe8 {[%clk 0:01:31]} 31. g4 {[%clk 0:01:23]}  hxg4 {[%clk 0:01:26]} 32. hxg4 {[%clk 0:01:24]}  Qf7 {[%clk 0:01:24]} 33. a5 {[%clk 0:01:10]}  Rb8 {[%clk 0:01:03]} 34. Re1 {[%clk 0:01:04]}  b6 {[%clk 0:00:55]} 35. axb6 {[%clk 0:00:52]}  Rxb6 {[%clk 0:00:56]} 36. Qc2 {[%clk 0:00:51]}  Rb7 {[%clk 0:00:47]} 37. b3 {[%clk 0:00:48]}  Nf6 {[%clk 0:00:38]} 38. gxf5 {[%clk 0:00:46]}  gxf5 {[%clk 0:00:39]} 39. Qxf5 {[%clk 0:00:43]}  Rxb3 {[%clk 0:00:39]} 40. Nd1 {[%clk 0:00:43]}  Ra3 {[%clk 0:00:32]} 41. Bc3 {[%clk 0:00:39]}  Ra2+ {[%clk 0:00:19]} 42. Kf1 {[%clk 0:00:36]}  Ra4 {[%clk 0:00:17]} 43. Qc8 {[%clk 0:00:30]}  Qf8 {[%clk 0:00:17]} 44. Ne3 {[%clk 0:00:26]}  Nh5 {[%clk 0:00:14]} 45. Bxg7 {[%clk 0:00:18]}  Nxg7 {[%clk 0:00:15]} 46. f5 {[%clk 0:00:16]}  Nf7 {[%clk 0:00:14]} 47. Qxf8+ {[%clk 0:00:15]}  Kxf8 {[%clk 0:00:15]} 48. f6 {[%clk 0:00:16]}  Ne8 {[%clk 0:00:15]} 49. Ng4 {[%clk 0:00:15]}  Rxc4 {[%clk 0:00:15]} 50. Be2 {[%clk 0:00:13]}  Rf4+ {[%clk 0:00:13]} 51. Kg2 {[%clk 0:00:12]}  Nxf6 {[%clk 0:00:14]} 52. Kg3 {[%clk 0:00:11]}  Rf5 {[%clk 0:00:12]} 53. Nxf6 {[%clk 0:00:11]}  Rxf6 {[%clk 0:00:13]} 54. Bxa6 {[%clk 0:00:11]}  Ne5 {[%clk 0:00:13]} 55. Bb7 {[%clk 0:00:09]}  Ke7 {[%clk 0:00:14]} 56. Ra1 {[%clk 0:00:07]}  Rf3+ {[%clk 0:00:14]} 57. Kg2 {[%clk 0:00:07]}  Rb3 {[%clk 0:00:15]} 58. Ra7 {[%clk 0:00:07]}  Kf6 {[%clk 0:00:15]} 59. Bc8 {[%clk 0:00:07]}  Rb2+ {[%clk 0:00:14]} 60. Kf1 {[%clk 0:00:07]}  c4 {[%clk 0:00:13]} 61. Be6 {[%clk 0:00:07]}  Kg5 {[%clk 0:00:13]} 62. Rc7 {[%clk 0:00:07]}  Kf4 {[%clk 0:00:14]} 63. Ke1 {[%clk 0:00:06]}  Ke3 {[%clk 0:00:14]} 64. Kd1 {[%clk 0:00:07]}  Nd3 {[%clk 0:00:14]} 65. Rxc4 {[%clk 0:00:06]}  Rd2# {[%clk 0:00:14]} 0-1


[Site "https://www.chess.com"]

[Event "Titled Tuesday Blitz June 8 2021"]
[White "Nitin, S."]
[Black "Ibarra Jerez, Jose Carlos"]
[WhiteFideId "5018277"]
[BlackFideId "2226332"]
[WhiteElo "2431"]
[BlackElo "2602"]
[Result "0-1"]
[Round "08"]
[TimeControl "180+1"]
[Date "2021.06.08"]
[WhiteClock "0:00:56"]
[BlackClock "0:01:19"]

1. e4 {[%clk 0:03:00]}  c5 {[%clk 0:02:59]} 2. Nf3 {[%clk 0:03:00]}  e6 {[%clk 0:02:59]} 3. d4 {[%clk 0:03:00]}  cxd4 {[%clk 0:03:00]} 4. Nxd4 {[%clk 0:03:01]}  Bc5 {[%clk 0:03:00]} 5. Nb3 {[%clk 0:02:50]}  Bb6 {[%clk 0:03:00]} 6. Nc3 {[%clk 0:02:47]}  Ne7 {[%clk 0:03:00]} 7. Bd3 {[%clk 0:02:47]}  O-O {[%clk 0:03:00]} 8. O-O {[%clk 0:02:47]}  f5 {[%clk 0:03:01]} 9. Bg5 {[%clk 0:02:44]}  f4 {[%clk 0:02:59]} 10. e5 {[%clk 0:02:34]}  Nbc6 {[%clk 0:02:59]} 11. Qh5 {[%clk 0:02:28]}  h6 {[%clk 0:02:57]} 12. Bh4 {[%clk 0:02:24]}  Qe8 {[%clk 0:02:47]} 13. Qxe8 {[%clk 0:02:08]}  Rxe8 {[%clk 0:02:47]} 14. Bxe7 {[%clk 0:02:09]}  Rxe7 {[%clk 0:02:46]} 15. Rfe1 {[%clk 0:02:08]}  Bc7 {[%clk 0:02:44]} 16. Be4 {[%clk 0:02:01]}  Nxe5 {[%clk 0:02:40]} 17. Nb5 {[%clk 0:01:58]}  Bb8 {[%clk 0:02:37]} 18. c4 {[%clk 0:01:58]}  a6 {[%clk 0:02:24]} 19. N5d4 {[%clk 0:01:52]}  d6 {[%clk 0:01:47]} 20. g3 {[%clk 0:01:36]}  Rf7 {[%clk 0:01:39]} 21. Rad1 {[%clk 0:01:30]}  Nxc4 {[%clk 0:01:34]} 22. Rc1 {[%clk 0:01:27]}  d5 {[%clk 0:01:34]} 23. Bg6 {[%clk 0:01:23]}  Rf6 {[%clk 0:01:31]} 24. Bd3 {[%clk 0:01:21]}  b5 {[%clk 0:01:27]} 25. a4 {[%clk 0:01:19]}  e5 {[%clk 0:01:20]} 26. Ne2 {[%clk 0:01:00]}  fxg3 {[%clk 0:01:19]} 27. hxg3 {[%clk 0:00:58]}  Ba7 {[%clk 0:01:20]} 28. Rf1 {[%clk 0:00:56]}  Bh3 {[%clk 0:01:19]} 0-1


[Site "https://www.chess.com"]

[Event "Titled Tuesday Blitz June 8 2021"]
[White "Orozbaev, Eldiar"]
[Black "Suarez Gomez, Julio"]
[WhiteFideId "13802240"]
[BlackFideId "22275991"]
[WhiteElo "1914"]
[BlackElo "2376"]
[Result "1-0"]
[Round "08"]
[TimeControl "180+1"]
[Date "2021.06.08"]
[WhiteClock "0:01:38"]
[BlackClock "0:00:47"]

1. e4 {[%clk 0:03:00]}  e6 {[%clk 0:02:54]} 2. d4 {[%clk 0:02:59]}  d5 {[%clk 0:02:55]} 3. exd5 {[%clk 0:03:00]}  exd5 {[%clk 0:02:55]} 4. Nc3 {[%clk 0:03:01]}  Nf6 {[%clk 0:02:55]} 5. Bd3 {[%clk 0:02:58]}  c6 {[%clk 0:02:50]} 6. Nge2 {[%clk 0:02:59]}  Bg4 {[%clk 0:02:47]} 7. f3 {[%clk 0:02:58]}  Bh5 {[%clk 0:02:47]} 8. Bg5 {[%clk 0:02:52]}  Nbd7 {[%clk 0:02:46]} 9. Qd2 {[%clk 0:02:49]}  Bg6 {[%clk 0:02:45]} 10. O-O-O {[%clk 0:02:49]}  Bxd3 {[%clk 0:02:41]} 11. Qxd3 {[%clk 0:02:49]}  Qc7 {[%clk 0:02:24]} 12. Rde1 {[%clk 0:02:48]}  O-O-O {[%clk 0:02:24]} 13. Ng3 {[%clk 0:02:47]}  h6 {[%clk 0:02:21]} 14. Bd2 {[%clk 0:02:46]}  g6 {[%clk 0:02:19]} 15. Re2 {[%clk 0:02:43]}  h5 {[%clk 0:02:18]} 16. Rhe1 {[%clk 0:02:41]}  Bd6 {[%clk 0:02:18]} 17. f4 {[%clk 0:02:21]}  Bxf4 {[%clk 0:02:09]} 18. Bxf4 {[%clk 0:02:18]}  Qxf4+ {[%clk 0:02:10]} 19. Kb1 {[%clk 0:02:18]}  Rhe8 {[%clk 0:02:10]} 20. Rf1 {[%clk 0:02:18]}  Qd6 {[%clk 0:02:05]} 21. Ref2 {[%clk 0:02:19]}  h4 {[%clk 0:01:53]} 22. Nge2 {[%clk 0:02:17]}  Qxh2 {[%clk 0:01:51]} 23. Rxf6 {[%clk 0:02:16]}  Nxf6 {[%clk 0:01:51]} 24. Rxf6 {[%clk 0:02:17]}  Qxg2 {[%clk 0:01:51]} 25. Rxf7 {[%clk 0:02:14]}  h3 {[%clk 0:01:51]} 26. Nb5 {[%clk 0:02:00]}  Qxe2 {[%clk 0:01:25]} 27. Nxa7+ {[%clk 0:01:59]}  Kb8 {[%clk 0:01:25]} 28. Nxc6+ {[%clk 0:01:58]}  bxc6 {[%clk 0:01:10]} 29. Qb3+ {[%clk 0:01:47]}  Qb5 {[%clk 0:00:58]} 30. Qg3+ {[%clk 0:01:45]}  Ka8 {[%clk 0:00:47]} 31. Qa3+ {[%clk 0:01:38]}  Kb8 {[%clk 0:00:46]} 32. Qa7+ {[%clk 0:01:37]}  Kc8 {[%clk 0:00:47]} 33. Qc7# {[%clk 0:01:38]} 1-0


[Site "https://www.chess.com"]

[Event "Titled Tuesday Blitz June 8 2021"]
[White "Perez Ponsa, Federico"]
[Black "Kobo, Ori"]
[WhiteFideId "117927"]
[BlackFideId "2812320"]
[WhiteElo "2672"]
[BlackElo "2431"]
[Result "1-0"]
[Round "08"]
[TimeControl "180+1"]
[Date "2021.06.08"]
[WhiteClock "0:00:08"]
[BlackClock "0:00:03"]

1. d4 {[%clk 0:03:00]}  Nf6 {[%clk 0:02:59]} 2. c4 {[%clk 0:03:00]}  e6 {[%clk 0:03:00]} 3. Nf3 {[%clk 0:03:00]}  Bb4+ {[%clk 0:03:00]} 4. Nbd2 {[%clk 0:02:58]}  O-O {[%clk 0:03:00]} 5. a3 {[%clk 0:02:57]}  Be7 {[%clk 0:03:00]} 6. b4 {[%clk 0:02:56]}  a5 {[%clk 0:02:57]} 7. b5 {[%clk 0:02:55]}  c5 {[%clk 0:02:51]} 8. bxc6 {[%clk 0:02:53]}  Nxc6 {[%clk 0:02:47]} 9. e3 {[%clk 0:02:54]}  d6 {[%clk 0:02:44]} 10. Bb2 {[%clk 0:02:52]}  Qc7 {[%clk 0:02:44]} 11. Bd3 {[%clk 0:02:49]}  e5 {[%clk 0:02:44]} 12. h3 {[%clk 0:02:44]}  Re8 {[%clk 0:02:33]} 13. O-O {[%clk 0:02:31]}  Bf8 {[%clk 0:02:34]} 14. Qb1 {[%clk 0:02:28]}  b6 {[%clk 0:02:20]} 15. Ne4 {[%clk 0:02:15]}  Nd7 {[%clk 0:01:56]} 16. Nc3 {[%clk 0:02:03]}  g6 {[%clk 0:01:41]} 17. Nd5 {[%clk 0:01:59]}  Qd8 {[%clk 0:01:40]} 18. Bc3 {[%clk 0:01:56]}  Ba6 {[%clk 0:01:34]} 19. Rd1 {[%clk 0:01:38]}  Rc8 {[%clk 0:01:23]} 20. Bf1 {[%clk 0:01:36]}  Bg7 {[%clk 0:00:48]} 21. Qb3 {[%clk 0:01:31]}  exd4 {[%clk 0:00:45]} 22. exd4 {[%clk 0:01:31]}  Rb8 {[%clk 0:00:39]} 23. Rab1 {[%clk 0:01:30]}  Nf6 {[%clk 0:00:36]} 24. a4 {[%clk 0:01:25]}  Ne4 {[%clk 0:00:27]} 25. Ba1 {[%clk 0:01:22]}  Bc8 {[%clk 0:00:27]} 26. Ne3 {[%clk 0:01:07]}  Nb4 {[%clk 0:00:26]} 27. Nd5 {[%clk 0:00:56]}  Nxd5 {[%clk 0:00:23]} 28. cxd5 {[%clk 0:00:57]}  Bd7 {[%clk 0:00:21]} 29. Re1 {[%clk 0:00:56]}  Qf6 {[%clk 0:00:13]} 30. Bb5 {[%clk 0:00:49]}  Bxb5 {[%clk 0:00:11]} 31. Qxb5 {[%clk 0:00:49]}  Qd8 {[%clk 0:00:08]} 32. Re3 {[%clk 0:00:47]}  f5 {[%clk 0:00:09]} 33. Rbe1 {[%clk 0:00:46]}  Bh6 {[%clk 0:00:09]} 34. R3e2 {[%clk 0:00:46]}  Qc7 {[%clk 0:00:09]} 35. Bb2 {[%clk 0:00:44]}  Rec8 {[%clk 0:00:09]} 36. Nh2 {[%clk 0:00:33]}  Rb7 {[%clk 0:00:08]} 37. Ng4 {[%clk 0:00:32]}  Bg7 {[%clk 0:00:03]} 38. Ne3 {[%clk 0:00:31]}  Qd7 {[%clk 0:00:03]} 39. Qa6 {[%clk 0:00:16]}  Rbc7 {[%clk 0:00:04]} 40. Qxb6 {[%clk 0:00:15]}  Rb7 {[%clk 0:00:04]} 41. Qxa5 {[%clk 0:00:15]}  Rcb8 {[%clk 0:00:04]} 42. Nc4 {[%clk 0:00:07]}  Rb4 {[%clk 0:00:04]} 43. Rc2 {[%clk 0:00:05]}  Rxc4 {[%clk 0:00:03]} 44. Rxc4 {[%clk 0:00:06]}  Rxb2 {[%clk 0:00:03]} 45. Rc7 {[%clk 0:00:07]}  Qd8 {[%clk 0:00:03]} 46. Rxg7+ {[%clk 0:00:07]}  Kxg7 {[%clk 0:00:03]} 47. Qxd8 {[%clk 0:00:08]} 1-0


[Site "https://www.chess.com"]